bitfinex/quotes_ETHUSD_20260313
["timestamp","ask_amount","ask_price","bid_price","bid_amount"]
[1773379335408,1.17340421,2109.3,2108.9,1.44323332]
[1773379335901,1.17340421,2109.3,2109.0,2.213]
[1773379336702,1.17340421,2109.3,2109.0,2.47408324]
[1773379336886,0.05925574,2109.5,2109.0,2.47408324]
[1773379336887,1.23265995,2109.5,2109.0,2.47408324]
[1773379337290,1.18517113,2109.4,2109.1,0.26108324]
[1773379337698,1.23265995,2109.5,2109.1,0.26108324]
[1773379338008,4.74011301,2109.7,2109.4,0.26267676]
[1773379338009,1.23265434,2109.7,2109.4,0.26267676]
[1773379338486,1.17340421,2109.7,2109.1,0.79881245]
[1773379338686,1.23265434,2109.7,2109.2,0.26267676]
[1773379339700,2.41766502,2109.7,2109.2,1.45098053]
[1773379339903,2.41767375,2109.7,2109.2,1.45098053]
[1773379340290,1.17340421,2109.6,2108.8,1.45125711]
[1773379340505,1.17340421,2109.4,2109.2,2.216]
[1773379340812,1.21440388,2109.6,2109.2,2.216]
[1773379341179,1.18501011,2109.7,2109.3,0.27076147]
[1773379341380,1.21440388,2109.6,2109.2,3.01481245]
[1773379341778,1.21440388,2109.6,2109.3,1.18522732]
[1773379342512,1.21440388,2109.6,2109.2,4.47221854]
[1773379343723,1.21440388,2109.5,2109.2,2.216]
[1773379343888,1.27365962,2109.5,2109.2,2.216]
[1773379344514,1.21440388,2109.5,2109.2,2.216]
[1773379344682,1.21440388,2109.5,2109.2,2.49217121]
[1773379345006,0.05925293,2109.6,2109.2,2.49217121]
[1773379345212,1.21440388,2109.7,2109.4,0.79881245]
[1773379346507,1.21440388,2109.7,2109.4,1.98397537]
[1773379346809,2.39941011,2109.7,2109.3,1.46135222]
[1773379347203,2.39941011,2109.7,2109.4,0.28041842]
[1773379347204,0.002,2109.5,2109.4,0.28041842]
[1773379347781,0.002,2109.5,2109.3,1.20325634]
[1773379348820,0.002,2109.5,2109.3,1.48486978]
[1773379350288,0.002,2109.5,2109.4,0.28390563]
[1773379350816,1.21440388,2109.7,2109.4,0.28390563]
[1773379351608,2.39940912,2109.7,2109.4,0.28390563]
[1773379351807,1.27365681,2109.6,2109.2,2.216]
[1773379352516,1.27365681,2109.6,2109.3,0.28612914]
[1773379352819,1.27365681,2109.6,2109.2,3.40127812]
[1773379352820,1.21440388,2109.6,2109.2,3.40127812]
[1773379353020,1.21440388,2109.6,2109.2,3.68844248]
[1773379353412,1.21440388,2109.5,2109.2,3.68844248]
[1773379354013,1.21440388,2109.5,2109.2,2.216]
[1773379354926,1.21440388,2109.4,2109.2,2.216]
[1773379355722,1.21440388,2109.4,2109.2,3.4012817]
[1773379356122,1.21440388,2109.6,2109.3,0.04740909]
[1773379357157,1.21440388,2109.5,2109.3,0.04740909]
[1773379357326,1.18507796,2109.6,2109.3,0.04740909]
[1773379357653,2.39948184,2109.6,2109.3,1.24944201]
[1773379357834,2.45873477,2109.6,2109.3,1.20203292]
[1773379358035,2.45873477,2109.6,2109.2,4.65072596]
[1773379358948,2.45873477,2109.6,2109.3,1.20203292]
[1773379359256,2.39948184,2109.6,2109.3,1.20203292]
[1773379360021,2.39948184,2109.6,2109.4,0.001]
[1773379360652,1.21440388,2109.8,2109.4,0.001]
[1773379361456,1.21440388,2109.8,2109.5,1.20203292]
[1773379361759,1.21440388,2109.9,2109.5,1.20203292]
[1773379361955,2.39917092,2110.2,2109.8,2.00084537]
[1773379362145,8.61019457,2111.4,2109.8,2.00084537]
[1773379362146,1.21440388,2110.4,2109.9,3.42903292]
[1773379362344,1.21440388,2110.9,2110.2,2.00084537]
[1773379362545,1.21440388,2110.7,2110.2,2.00084537]
[1773379362847,5.08212652,2111.3,2110.4,2.00084537]
[1773379362848,1.21440388,2110.9,2110.4,2.00084537]
[1773379363028,1.21440388,2110.9,2110.5,1.20203292]
[1773379363229,1.21440388,2110.9,2110.6,2.227]
[1773379363459,1.27362032,2110.9,2110.1,1.20203292]
[1773379364635,1.22100697,2110.7,2110.2,3.47112326]
[1773379364838,0.05922486,2110.6,2110.2,3.47112326]
[1773379365248,1.28023183,2110.6,2110.2,3.47112326]
[1773379365845,1.28023183,2110.6,2110.2,2.227]
[1773379366851,2.40556039,2110.5,2110.2,2.227]
[1773379367041,1.22100697,2110.4,2110.2,2.227]
[1773379367241,1.18455342,2110.5,2110.2,2.227]
[1773379367763,2.40556039,2110.5,2110.2,2.227]
[1773379368940,1.22100697,2110.4,2110.2,2.227]
[1773379369139,1.28023744,2110.4,2109.9,1.24412326]
[1773379369370,1.28023744,2110.4,2109.7,2.4291125]
[1773379369586,1.28023744,2110.4,2109.7,1.24412326]
[1773379370470,1.28023744,2110.4,2109.8,3.51552111]
[1773379371079,1.18462028,2110.4,2109.9,1.10264832]
[1773379371284,2.36455039,2110.6,2110.0,1.10264832]
[1773379371589,1.18004774,2110.5,2110.0,1.10264832]
[1773379372155,1.23927821,2110.4,2110.0,1.10264832]
[1773379373076,1.18466568,2110.3,2110.0,1.10264832]
[1773379373276,1.18466568,2110.3,2110.1,2.224]
[1773379374083,1.18204774,2110.2,2110.1,2.224]
[1773379374261,0.002,2110.2,2110.1,2.224]
[1773379377583,4.73832983,2110.5,2110.2,1.10264832]
[1773379377778,1.18455342,2110.5,2110.2,1.10264832]
[1773379381601,1.24378109,2110.5,2110.2,1.10264832]
[1773379382554,1.18004774,2110.4,2109.4,1.10364832]
[1773379382700,1.18004774,2110.2,2109.4,1.10364832]
[1773379382900,1.18004774,2110.2,2109.4,2.28880079]
[1773379383131,1.18004774,2110.2,2109.4,0.001]
[1773379383830,1.18004774,2110.2,2109.4,1.10364832]
[1773379384603,1.18004774,2110.0,2109.4,0.001]
[1773379385950,1.18004774,2110.0,2108.8,1.10264832]
[1773379385951,1.18004774,2109.8,2108.8,1.10264832]
[1773379386118,1.18004774,2109.8,2109.1,2.22]
[1773379386512,1.1850026,2109.7,2109.1,2.22]
[1773379386716,1.18004774,2109.6,2109.1,2.22]
[1773379387143,1.18004774,2109.6,2108.9,1.10264832]
[1773379387943,1.18004774,2109.6,2108.7,1.10264832]
[1773379388322,1.18004774,2109.6,2108.8,2.216]
[1773379388718,1.18004774,2109.4,2109.1,0.001]
[1773379390950,1.18522732,2109.3,2109.1,0.001]
[1773379391125,2.36527506,2109.3,2109.1,0.001]
[1773379393625,1.10542847,2109.2,2109.1,0.001]
[1773379393954,1.10542847,2109.2,2108.8,2.216]
[1773379394152,1.10542847,2109.2,2108.6,1.10364832]
[1773379395354,1.10542847,2109.2,2108.7,2.213]
[1773379396438,1.18533971,2109.1,2108.7,3.31564832]
[1773379396756,1.18533971,2109.1,2108.8,1.11444493]
[1773379397258,1.18533971,2109.1,2108.8,1.10264832]
[1773379397830,2.11814991,2109.1,2108.7,2.213]
[1773379398339,2.11814991,2109.1,2108.7,3.32624126]
[1773379398340,0.05926979,2109.0,2108.7,3.32624126]
[1773379398852,0.05926979,2109.0,2108.8,1.08431781]
[1773379399029,1.24460669,2109.1,2108.8,1.08431781]
[1773379401580,1.71297533,2109.1,2108.7,2.213]
[1773379402066,1.71297533,2109.1,2108.7,2.66765295]
[1773379402682,1.71297533,2109.1,2109.0,0.001]
[1773379403485,1.71497533,2109.1,2109.0,0.001]
[1773379403884,0.46836864,2108.8,2108.6,0.001]
[1773379404064,0.46836864,2108.8,2108.4,1e-08]
[1773379404388,0.46836864,2108.8,2108.2,2.41759619]
[1773379405670,0.46836864,2108.6,2108.2,1.96294324]
[1773379407479,1.18552835,2108.8,2108.4,0.45465295]
[1773379407684,1.24480376,2108.8,2108.4,0.45465295]
[1773379410095,1.18548117,2108.9,2108.5,0.45465295]
[1773379410290,1.18542796,2109.0,2108.5,0.45465295]
[1773379410485,1.24469775,2109.0,2108.5,0.45465295]
[1773379411083,0.46836864,2108.9,2108.5,0.45465295]
[1773379411401,0.46836864,2108.9,2108.3,1.64039945]
[1773379411696,0.46836864,2108.9,2108.4,0.45465295]
[1773379413396,1.24469775,2109.0,2108.5,0.45465295]
[1773379413901,0.06126698,2109.1,2108.5,0.45465295]
[1773379414067,1.18736665,2109.1,2108.5,0.45465295]
[1773379415075,1.18735694,2109.1,2108.5,0.45465295]
[1773379415611,1.18735694,2109.1,2108.7,0.45465295]
[1773379415829,1.18735694,2109.1,2108.8,2.2]
[1773379416032,1.18735694,2109.1,2108.8,2.65465295]
[1773379416203,0.002,2109.1,2108.9,0.45465295]
[1773379416718,1.24645793,2109.4,2108.9,0.45465295]
[1773379416928,1.18719938,2109.4,2108.9,0.45465295]
[1773379417317,1.18717404,2109.4,2108.9,0.45465295]
[1773379417827,0.002,2109.4,2109.1,0.45465295]
[1773379418523,0.06125855,2109.4,2109.1,0.45465295]
[1773379419126,0.002,2109.4,2109.1,0.45465295]
[1773379419747,0.47036864,2109.4,2109.1,0.45465295]
[1773379420949,0.47036864,2109.4,2108.9,1.64006047]
[1773379422256,1.18522732,2109.3,2109.0,0.45465295]
[1773379423270,1.65558304,2109.4,2109.0,0.45465295]
[1773379425323,1.65558304,2109.4,2109.1,0.01177491]
[1773379425324,0.47036864,2109.4,2109.1,0.01177491]
[1773379425560,0.47036864,2109.4,2109.1,0.500645]
[1773379426557,1.65594333,2109.8,2109.2,0.48887009]
[1773379427144,1.65594333,2109.8,2109.4,0.48887009]
[1773379427449,1.65594333,2109.8,2109.5,2.196]
[1773379427650,1.71519065,2109.8,2109.5,2.196]
[1773379428555,1.65594333,2109.8,2109.5,2.68487009]
[1773379428749,1.18494644,2109.8,2109.5,2.68487009]
[1773379429551,0.001,2109.6,2109.5,2.68487009]
[1773379429923,0.47199689,2109.6,2109.3,0.01175919]
[1773379430126,0.47199689,2109.6,2108.9,1.18541979]
[1773379430354,0.47199689,2109.6,2109.0,0.48887009]
[1773379431162,0.47199689,2109.6,2109.1,2.195]
[1773379431534,1.64796111,2109.5,2109.1,2.195]
[1773379432653,1.18606079,2109.6,2109.2,0.47094331]
[1773379432827,1.18499294,2109.8,2109.2,0.47094331]
[1773379433356,1.18499294,2109.8,2109.4,0.47094331]
[1773379433663,1.64767111,2110.1,2109.6,0.47094331]
[1773379433826,0.52208786,2110.0,2109.4,0.47094331]
[1773379434932,1.18482495,2110.1,2109.4,0.47094331]
[1773379435242,1.64767111,2110.1,2109.4,0.47094331]
[1773379435429,0.46284616,2110.1,2109.4,0.47094331]
[1773379435629,1.98642571,2110.3,2109.6,0.47094331]
[1773379435862,2.04565899,2110.3,2109.6,0.47094331]
[1773379436862,1.98642571,2110.3,2109.6,0.47094331]
[1773379437061,1.52356891,2110.3,2109.6,0.47094331]
[1773379437232,0.33889694,2110.3,2109.6,0.47094331]
[1773379437731,0.33889694,2110.3,2109.8,0.47094331]
[1773379437931,0.33889694,2110.3,2109.9,2.66894331]
[1773379439665,0.33889694,2110.3,2109.9,3.85381318]
[1773379440357,1.523566,2110.3,2109.9,2.66894331]
[1773379440777,1.523566,2110.3,2109.9,3.85383026]
[1773379440968,1.523566,2110.3,2109.9,2.66894331]
[1773379441954,0.002,2110.1,2109.9,3.8538307]
[1773379442460,0.002,2110.1,2109.9,2.66894331]
[1773379443445,0.002,2110.1,2110.0,0.47094331]
[1773379444038,0.002,2110.1,2109.9,2.198]
[1773379444239,0.002,2110.1,2110.0,0.47094331]
[1773379444545,0.002,2110.1,2109.9,2.198]
[1773379445964,1.18677797,2110.1,2109.9,2.198]
[1773379446181,0.46284616,2110.0,2109.5,0.001]
[1773379446462,0.46284616,2110.0,2109.5,1.65704532]
[1773379446668,0.46284616,2110.0,2109.6,0.47094331]
[1773379447240,1.24601686,2110.1,2109.6,0.47094331]
[1773379447434,1.70886302,2110.1,2109.8,0.47094331]
[1773379447835,0.46284616,2110.0,2109.7,2.199]
[1773379448040,0.46284616,2109.9,2109.7,2.199]
[1773379449267,0.46284616,2109.9,2109.5,1.65704968]
[1773379449268,0.46284616,2109.9,2109.5,0.47194331]
[1773379449474,0.46284616,2109.9,2109.7,2.2]
[1773379450472,1.64778253,2109.9,2109.7,2.2]
[1773379451168,1.64778253,2109.9,2109.5,0.001]
[1773379451169,0.46284616,2109.8,2109.5,0.001]
[1773379452248,0.46284616,2109.8,2109.5,2.201]
[1773379452670,0.46284616,2109.6,2109.5,2.201]
[1773379453144,0.46284616,2109.6,2109.3,0.001]
[1773379454470,0.46284616,2109.6,2109.4,2.2]
[1773379457280,0.46284616,2109.6,2109.5,0.001]
[1773379457846,0.46284616,2109.6,2109.4,2.2]
[1773379458375,0.46284616,2109.6,2109.4,3.38515318]
[1773379458556,1.18497179,2109.8,2109.4,3.38515318]
[1773379458872,0.46284616,2109.7,2109.4,3.38513142]
[1773379459076,0.46284616,2109.7,2109.4,2.2]
[1773379459247,1.18505877,2109.6,2109.4,2.2]
[1773379459453,1.64790493,2109.6,2109.4,2.2]
[1773379459653,0.46284616,2109.6,2109.4,2.2]
[1773379461949,1.18506095,2109.6,2109.4,2.2]
[1773379462147,0.45244135,2109.6,2109.4,2.2]
[1773379466281,1.24429548,2109.7,2109.4,2.65352176]
[1773379466282,1.69673683,2109.7,2109.4,2.65352176]
[1773379466454,1.69673683,2109.7,2109.4,2.2]
[1773379466655,0.45244135,2109.6,2109.4,2.2]
[1773379470879,1.63750054,2109.6,2109.4,2.2]
[1773379471085,1.6375222,2109.6,2109.4,2.2]
[1773379471288,1.18508085,2109.6,2109.4,2.2]
[1773379471456,0.45244135,2109.5,2109.4,2.2]
[1773379472377,0.45244135,2109.5,2109.4,2.201]
[1773379474988,1.6375563,2109.5,2109.4,2.201]
[1773379475294,0.45244135,2109.4,2109.3,0.001]
[1773379475488,0.45244135,2109.4,2109.0,0.001]
[1773379475858,0.45244135,2109.4,2109.0,0.45452176]
[1773379476267,0.45244135,2109.4,2109.1,2.194]
[1773379476691,0.45244135,2109.2,2109.1,2.194]
[1773379477083,1.63766867,2109.3,2109.1,2.194]
[1773379478106,0.45244135,2109.4,2109.1,2.194]
[1773379478608,0.45244135,2109.4,2109.1,2.64752176]
[1773379479796,1.63761953,2109.4,2109.1,2.64752176]
[1773379480098,0.45244135,2109.4,2109.1,2.64752176]
[1773379480973,1.63763929,2109.4,2109.1,2.64752176]
[1773379481184,1.63763929,2109.4,2109.1,2.194]
[1773379482119,0.45244135,2109.3,2109.1,2.194]
[1773379482875,0.45244135,2109.1,2109.0,0.001]
[1773379483881,1.18528351,2109.2,2109.0,0.001]
[1773379484083,1.67705377,2109.2,2109.0,0.001]
[1773379484803,1.18526997,2109.3,2109.0,0.47466299]
[1773379485500,1.18526997,2109.3,2109.1,2.193]
[1773379485891,0.49177026,2109.4,2109.1,2.66666299]
[1773379486498,1.67695298,2109.4,2109.2,0.001]
[1773379486998,0.49177026,2109.2,2109.0,0.001]
[1773379487202,0.49177026,2109.2,2108.7,0.47366299]
[1773379487401,0.49177026,2109.2,2108.7,0.47466299]
[1773379487608,1.67710997,2109.1,2108.7,0.47466299]
[1773379488371,0.49177026,2109.0,2108.7,0.47466299]
[1773379488609,0.49177026,2109.0,2108.7,2.192]
[1773379489576,1.18545213,2108.9,2108.7,2.192]
[1773379489907,0.49177026,2108.7,2108.6,0.001]
[1773379490106,0.49177026,2108.7,2108.4,0.001]
[1773379490705,0.49177026,2108.7,2108.4,0.4779092]
[1773379491214,0.49177026,2108.7,2108.4,1e-08]
[1773379491375,0.46904801,2108.5,2107.8,0.10489714]
[1773379491574,0.46904801,2108.5,2107.9,2.29589714]
[1773379491575,0.46904801,2108.3,2107.9,2.29589714]
[1773379492207,0.46904801,2108.3,2107.9,2.191]
[1773379493012,0.46904801,2107.9,2107.6,0.0011]
[1773379494310,0.46904801,2107.7,2107.6,0.0011]
[1773379494708,0.46904801,2107.7,2107.3,0.0011]
[1773379495221,0.46904801,2107.7,2107.3,0.0033]
[1773379496794,1.18618333,2107.6,2107.3,0.0033]
[1773379497004,1.65523134,2107.6,2107.3,0.0033]
[1773379497421,0.46904801,2107.5,2107.3,0.0022]
[1773379497596,0.46904801,2107.3,2107.1,0.0011]
[1773379498597,0.46904801,2107.3,2107.0,0.37288807]
[1773379498995,1.1864085,2107.2,2107.0,0.37288807]
[1773379499200,1.65545651,2107.2,2106.9,2.1911]
[1773379501632,1.65545651,2107.2,2107.0,0.001]
[1773379502441,0.46904801,2107.6,2107.0,0.1199933]
[1773379504514,1.65528763,2107.5,2107.0,1.30650094]
[1773379504716,0.46904801,2107.5,2107.1,0.10709714]
[1773379504903,1.6552061,2107.7,2107.3,0.10709714]
[1773379505103,0.46904801,2107.9,2107.3,0.10709714]
[1773379505328,1.65506252,2107.9,2107.4,0.11896571]
[1773379505860,1.65506252,2107.9,2107.4,0.10709714]
[1773379507429,1.65506252,2107.9,2107.4,1.29339041]
[1773379507729,1.65506252,2107.9,2107.5,0.10709714]
[1773379508496,1.65506252,2107.9,2107.3,1.18631273]
[1773379508497,1.18612705,2107.7,2107.2,0.01186857]
[1773379508716,1.65517506,2107.7,2107.0,1.18749024]
[1773379508932,1.65517506,2107.7,2107.1,0.10709714]
[1773379510724,0.46904801,2107.6,2107.0,0.001]
[1773379510933,0.46904801,2107.6,2106.8,0.0011]
[1773379510934,0.46904801,2107.0,2106.8,0.0011]
[1773379511936,0.05930916,2107.6,2106.8,0.0011]
[1773379511937,0.46904801,2107.4,2106.8,0.0011]
[1773379512122,0.46904801,2107.2,2106.8,0.0011]
[1773379512835,0.46904801,2107.1,2106.8,0.0011]
[1773379515022,0.46904801,2107.1,2107.0,0.0011]
[1773379515617,1.18643834,2107.2,2107.0,0.0011]
[1773379518726,1.65548635,2107.2,2107.0,0.0011]
[1773379521145,0.46331863,2107.1,2106.8,0.0011]
[1773379521862,0.52264187,2107.1,2106.8,0.0011]
[1773379522218,0.46331863,2107.1,2106.8,0.0011]
[1773379522821,0.52264187,2107.1,2106.8,0.0011]
[1773379524818,0.46331863,2107.0,2106.8,0.0011]
[1773379525017,9.134328,2107.7,2106.8,0.0011]
[1773379525018,0.48203498,2108.0,2107.5,0.10819714]
[1773379525327,0.46331863,2107.8,2107.2,0.48938645]
[1773379525631,0.51074627,2107.7,2107.3,2.181]
[1773379525862,0.46331863,2107.7,2107.3,2.181]
[1773379526030,0.46331863,2108.6,2107.3,2.67038645]
[1773379526230,0.46331863,2108.4,2107.3,2.67038645]
[1773379526440,0.46331863,2108.2,2107.3,2.67038645]
[1773379526641,0.46331863,2107.9,2107.3,3.85671759]
[1773379526850,0.04742764,2107.8,2107.3,3.85671759]
[1773379528233,0.04742764,2107.8,2107.3,1.67571759]
[1773379528433,0.04742764,2107.8,2107.4,2.183]
[1773379528654,0.04742764,2107.8,2107.4,3.36928372]
[1773379529323,0.04842764,2107.8,2107.4,3.85867017]
[1773379529523,0.04742764,2108.0,2107.5,0.48938645]
[1773379530663,0.04742764,2108.0,2107.6,1.67556978]
[1773379533356,0.46331863,2107.9,2107.4,3.85862607]
[1773379533527,0.04742764,2107.8,2107.4,3.85862607]
[1773379533726,0.04742764,2107.8,2107.4,1.67562607]
[1773379533930,0.51074627,2107.8,2107.5,2.185]
[1773379536036,0.04742764,2107.8,2107.5,2.185]
[1773379536441,0.04742764,2107.8,2107.5,2.67438645]
[1773379537659,1.23350234,2107.8,2107.5,2.67438645]
[1773379537860,1.23350234,2107.8,2107.5,2.185]
[1773379539856,1.23350234,2107.8,2107.7,0.001]
[1773379540160,1.23550234,2107.8,2107.7,0.001]
[1773379540532,0.04942764,2107.8,2107.7,0.001]
[1773379540728,0.002,2107.8,2107.7,0.001]
[1773379542759,1.18795825,2108.0,2107.7,0.49038645]
[1773379543146,0.002,2108.0,2107.7,0.49038645]
[1773379543963,0.002,2108.0,2107.7,2.185]
[1773379545260,0.002,2108.0,2107.7,3.8488791]
[1773379546336,0.002,2108.0,2107.8,0.47780103]
[1773379547263,0.002,2108.0,2107.9,0.47780103]
[1773379548050,0.002,2108.0,2107.7,3.84888039]
[1773379549344,0.002,2108.0,2107.8,2.183]
[1773379551269,0.49612447,2108.3,2107.9,0.48230713]
[1773379551448,0.002,2108.3,2108.0,1.66826538]
[1773379552171,0.002,2108.3,2108.0,0.48230713]
[1773379553973,0.002,2108.3,2108.0,0.48330713]
[1773379557279,0.002,2108.3,2108.1,0.48230713]
[1773379557478,1.67975334,2108.6,2108.1,0.48230713]
[1773379558282,0.49412447,2108.6,2108.1,0.48230713]
[1773379558775,1.67975506,2108.6,2108.1,0.48230713]
[1773379559665,1.67975506,2108.6,2108.2,1.66815287]
[1773379560363,1.67975506,2108.6,2108.2,0.48230713]
[1773379560687,0.49412447,2108.6,2108.2,0.48230713]
[1773379561452,1.6797519,2108.6,2108.2,0.48230713]
[1773379561649,1.6797519,2108.6,2108.1,1.18585556]
[1773379561650,0.49412447,2108.5,2108.1,1.18585556]
[1773379561880,0.49412447,2108.5,2108.0,5.22696532]
[1773379562072,0.49412447,2108.5,2108.1,0.48230713]
[1773379565684,0.49412447,2108.5,2108.2,1.18584574]
[1773379566676,0.002,2108.3,2108.2,1.18584574]
[1773379566875,0.49612447,2108.3,2108.1,2.177]
[1773379567971,1.68195253,2108.3,2108.1,2.177]
[1773379568179,0.49412447,2108.2,2108.1,2.177]
[1773379568487,0.002,2108.3,2108.1,3.84520742]
[1773379576222,0.002,2108.3,2108.1,3.36290029]
[1773379578478,0.49612447,2108.3,2108.1,2.177]
[1773379578884,0.49612447,2108.3,2108.1,3.36289924]
[1773379580696,0.002,2108.5,2108.2,0.48230713]
[1773379581003,0.002,2108.5,2108.3,0.53894923]
[1773379583499,0.002,2108.5,2108.4,1.18573325]
[1773379584091,0.002,2108.8,2108.5,0.49151766]
[1773379584989,0.34182265,2109.0,2108.7,0.49151766]
[1773379585178,0.34182265,2109.0,2108.8,2.66351766]
[1773379586502,0.80937596,2109.0,2108.8,2.172]
[1773379590117,0.34182265,2109.0,2108.8,2.66351766]
[1773379590615,0.34182265,2109.0,2108.9,0.49151766]
[1773379591009,0.80937596,2109.0,2108.8,2.172]
[1773379595514,0.34182265,2109.0,2108.8,2.172]
[1773379598327,4.74313578,2109.2,2108.9,0.49151766]
[1773379598328,0.002,2109.2,2108.9,0.49151766]
[1773379598921,4.74257378,2109.5,2109.2,0.49151766]
[1773379598922,0.46955331,2109.5,2109.2,0.49151766]
[1773379599117,0.002,2109.5,2109.2,0.49151766]
[1773379599931,0.46955331,2109.8,2109.3,0.49151766]
[1773379599932,1.654539,2109.8,2109.3,0.49151766]
[1773379600117,1.654539,2109.8,2109.2,0.79985659]
[1773379600118,1.654539,2109.8,2109.4,2.66351766]
[1773379600312,1.65450096,2109.8,2109.5,0.49151766]
[1773379600624,0.46955331,2109.8,2109.5,0.49151766]
[1773379601003,1.65451065,2109.8,2109.5,0.49151766]
[1773379601727,0.46755331,2109.7,2109.3,2.171]
[1773379602227,0.46755331,2109.7,2109.0,0.49151766]
[1773379602432,0.46755331,2109.4,2108.7,0.49151766]
[1773379603316,0.46755331,2109.4,2108.6,1.18562079]
[1773379603317,0.46755331,2109.4,2108.9,0.49151766]
[1773379603729,0.46755331,2109.4,2109.0,0.001]
[1773379604114,0.46955331,2109.4,2109.0,0.001]
[1773379604647,1.64450569,2109.3,2109.0,0.001]
[1773379608844,1.64450569,2109.3,2109.0,0.48816389]
[1773379610945,0.49121509,2109.2,2108.8,2.66756904]
[1773379611247,0.49121509,2109.2,2108.9,2.169]
[1773379613150,0.49121509,2109.0,2108.8,0.001]
[1773379614429,0.49121509,2109.0,2108.9,2.168]
[1773379615447,1.6765548,2109.1,2108.9,2.168]
[1773379615853,1.18533971,2109.1,2108.9,2.66356904]
[1773379616222,1.18533971,2109.1,2108.9,2.168]
[1773379617242,1.18533971,2109.1,2108.9,2.169]
[1773379620729,0.49121509,2109.0,2108.9,2.169]
[1773379620924,0.49121509,2109.0,2108.8,0.001]
[1773379622551,0.49121509,2108.8,2108.6,0.001]
[1773379625933,1.18556456,2108.7,2108.6,0.001]
[1773379626986,1.67677965,2108.7,2108.6,0.001]
[1773379627151,1.18556456,2108.7,2108.3,0.49656904]
[1773379627352,1.18556456,2108.7,2108.4,0.49556904]
[1773379627896,1.67677965,2108.7,2108.4,0.49556904]
[1773379628482,1.67677965,2108.7,2108.5,2.164]
[1773379629679,1.18556456,2108.7,2108.5,2.164]
[1773379629849,1.67842947,2109.4,2108.7,0.49556904]
[1773379630048,0.49321509,2109.4,2108.9,0.49556904]
[1773379630379,0.002,2109.0,2108.9,0.49556904]
[1773379630583,0.002,2109.4,2108.9,0.49556904]
[1773379631353,0.002,2109.4,2109.1,0.49556904]
[1773379631579,0.002,2109.4,2109.2,2.164]
[1773379631980,0.002,2109.4,2109.2,2.65956904]
[1773379632555,0.002,2109.4,2109.2,2.164]
[1773379632779,0.49321509,2109.4,2109.2,2.164]
[1773379633155,0.002,2109.4,2109.2,2.65956904]
[1773379634278,0.002,2109.4,2109.1,1.68089611]
[1773379634477,0.002,2109.4,2109.2,2.65956904]
[1773379635201,0.49321509,2109.4,2109.3,2.164]
[1773379635397,0.49321509,2109.4,2109.0,0.49556904]
[1773379636298,1.67839894,2109.4,2109.0,1.68096325]
[1773379636597,1.67839894,2109.4,2109.1,2.164]
[1773379637090,0.49321509,2109.4,2109.1,2.164]
[1773379637300,0.49321509,2109.4,2109.1,2.65956904]
[1773379639605,1.67839938,2109.4,2109.1,2.65956904]
[1773379639901,1.18718429,2109.4,2109.2,2.163]
[1773379641113,1.68030249,2109.4,2109.2,2.163]
[1773379642207,1.68030249,2109.4,2109.2,2.164]
[1773379642590,0.4931182,2109.3,2109.0,0.001]
[1773379642912,0.4931182,2109.3,2109.0,0.48322258]
[1773379643715,1.68030249,2109.4,2109.1,2.163]
[1773379644012,1.68030249,2109.4,2109.1,2.64522258]
[1773379646589,1.68030249,2109.4,2109.2,0.48222258]
[1773379646590,0.002,2109.4,2109.2,0.48222258]
[1773379651309,0.4951182,2109.4,2109.1,3.39574373]
[1773379651494,0.4951182,2109.4,2109.1,2.163]
[1773379653107,1.18522732,2109.3,2109.1,2.163]
[1773379654310,1.67834552,2109.3,2109.1,2.163]
[1773379655110,1.67834552,2109.3,2109.0,0.001]
[1773379655309,1.67834552,2109.3,2109.2,0.001]
[1773379657225,0.002,2109.4,2109.2,0.001]
[1773379657421,0.002,2109.4,2109.2,2.64522258]
[1773379658004,0.002,2109.4,2109.2,2.163]
[1773379659856,0.002,2109.4,2109.2,2.64522258]
[1773379660208,1.13895438,2109.5,2109.3,0.48222258]
[1773379660445,0.4931182,2110.4,2109.8,0.48222258]
[1773379660604,0.008,2110.3,2110.0,0.48222258]
[1773379660803,0.004,2110.4,2110.0,0.48222258]
[1773379660804,0.008,2110.4,2110.0,0.48222258]
[1773379661819,0.008,2110.4,2110.0,1.18480626]
[1773379662154,0.008,2110.4,2110.1,0.48222258]
[1773379662909,1.19261126,2110.4,2110.1,0.48222258]
[1773379664053,0.45800605,2110.3,2109.9,2.162]
[1773379664255,0.45800605,2110.3,2110.0,2.161]
[1773379664461,0.008,2110.2,2110.0,2.161]
[1773379665429,0.45800605,2110.2,2110.0,2.161]
[1773379666166,0.45800605,2110.1,2109.6,1.65111602]
[1773379666890,0.45800605,2110.1,2109.7,0.46605725]
[1773379667156,0.45800605,2110.0,2109.3,0.46605725]
[1773379667348,0.45000605,2110.0,2109.5,0.46605725]
[1773379667555,0.45400605,2109.9,2109.5,0.46605725]
[1773379667755,0.45000605,2109.9,2109.5,0.46605725]
[1773379667928,0.008,2110.0,2109.5,0.46605725]
[1773379668129,0.008,2109.9,2109.5,1.65113441]
[1773379669162,0.45800605,2109.9,2109.5,1.65113441]
[1773379669647,0.45400605,2109.9,2109.5,1.65113441]
[1773379670940,0.008,2109.8,2109.5,0.46605725]
[1773379671445,0.49076435,2109.8,2109.4,2.16]
[1773379671645,0.49076435,2109.7,2109.4,2.16]
[1773379671847,0.48276435,2109.7,2109.4,2.16]
[1773379672575,1.67578914,2109.7,2109.4,2.16]
[1773379672775,0.49076435,2109.6,2109.4,2.16]
[1773379674175,0.008,2109.6,2109.4,2.16]
[1773379675174,0.008,2109.6,2109.4,2.61476463]
[1773379679376,0.25390753,2109.6,2109.4,2.16]
[1773379679883,0.008,2109.5,2109.4,2.16]
[1773379680676,0.008,2109.5,2109.3,0.45576463]
[1773379680876,1.43902248,2109.5,2109.3,0.001]
[1773379681076,0.25390753,2109.5,2109.3,0.001]
[1773379681478,0.25390753,2109.5,2109.4,0.001]
[1773379681773,0.008,2109.5,2109.4,0.001]
[1773379681979,0.008,2109.5,2109.4,2.159]
[1773379684580,0.008,2109.5,2109.4,2.61376463]
[1773379685357,0.008,2109.5,2109.4,2.159]
[1773379686792,0.004,2109.5,2109.4,2.159]
[1773379687191,1.43286398,2109.8,2109.5,0.45476463]
[1773379687501,0.004,2109.7,2109.5,0.45476463]
[1773379688200,1.43285618,2109.8,2109.5,0.45476463]